bitfinex/quotes_ETHUSD_20251021
["timestamp","ask_amount","ask_price","bid_price","bid_amount"]
[1761078704392,0.2305,3955.0,3954.7,2.52857712]
[1761078704608,0.74434151,3955.4,3955.0,2.52844011]
[1761078705045,0.4634,3955.3,3955.0,2.52844011]
[1761078705249,0.4634,3955.3,3954.8,2.52856957]
[1761078705250,0.4634,3955.3,3954.8,2.5285499]
[1761078705489,0.4634,3955.3,3954.7,2.52863635]
[1761078705784,0.4634,3955.3,3955.0,2.52839991]
[1761078705990,0.4634,3955.3,3954.8,2.52852108]
[1761078706363,0.4634,3955.3,3954.9,2.52849485]
[1761078706562,0.2167,3955.4,3954.9,2.52846513]
[1761078706885,0.4634,3955.3,3955.0,2.52841319]
[1761078707062,0.4634,3955.3,3955.1,2.52836322]
[1761078707588,0.2167,3955.4,3955.2,2.52831715]
[1761078707901,0.4634,3955.3,3954.2,3.369]
[1761078708102,0.4634,3955.3,3954.9,2.5285054]
[1761078708822,0.4634,3955.3,3955.0,2.52838266]
[1761078709986,0.4634,3955.3,3954.9,2.52847575]
[1761078710514,0.4634,3955.3,3954.2,5.89794524]
[1761078710676,0.4634,3955.3,3954.5,2.52876469]
[1761078710872,0.4634,3955.3,3954.7,2.52857748]
[1761078711077,0.4634,3955.3,3955.0,2.52839879]
[1761078711377,0.4634,3955.3,3955.1,2.52837343]
[1761078711682,0.4634,3955.3,3954.8,2.52851974]
[1761078712073,0.4644,3955.3,3955.1,2.52837788]
[1761078712502,0.001,3955.3,3954.2,3.369]
[1761078712702,0.001,3955.3,3955.1,2.52832842]
[1761078713116,0.001,3955.3,3955.2,2.52831715]
[1761078713780,0.001,3955.3,3955.1,2.52836361]
[1761078714222,0.001,3955.3,3955.2,2.52831715]
[1761078716120,0.001,3955.3,3954.5,2.52875347]
[1761078716483,0.001,3955.3,3955.2,2.52831715]
[1761078717422,0.001,3955.3,3954.5,2.52876469]
[1761078717624,0.001,3955.3,3955.2,2.52831715]
[1761078720287,0.001,3955.3,3955.1,2.52831803]
[1761078720486,0.001,3955.3,3955.2,2.52831715]
[1761078720780,0.001,3955.3,3954.7,3.364]
[1761078720988,0.2184,3954.8,3954.2,3.364]
[1761078721183,0.2184,3954.8,3953.8,3.363]
[1761078721492,0.2184,3954.8,3952.8,0.0854]
[1761078721493,2.5288007,3954.5,3952.8,0.0854]
[1761078721682,2.5288007,3954.5,3952.5,0.002]
[1761078721683,3.363,3954.5,3952.5,0.002]
[1761078721885,0.2184,3954.8,3952.9,3.363]
[1761078722087,1.5562,3955.3,3953.9,2.529145]
[1761078722313,0.001,3955.3,3954.1,2.52902051]
[1761078722617,0.4716,3955.2,3953.9,3.363]
[1761078722786,0.2184,3954.0,3953.8,2.52921145]
[1761078722996,2.52856027,3954.9,3954.0,2.52903595]
[1761078723225,0.50688,3955.1,3953.8,2.52921238]
[1761078723226,3.362,3954.8,3953.8,0.02529212]
[1761078723426,3.362,3954.8,3954.2,2.52895614]
[1761078723427,0.4716,3954.7,3954.2,2.52895614]
[1761078723803,0.4716,3954.7,3954.2,0.02528956]
[1761078724000,0.2184,3955.0,3953.9,5.89112288]
[1761078724308,0.2184,3955.0,3954.9,2.52850893]
[1761078725002,0.69,3955.0,3954.9,2.52850893]
[1761078727325,0.2184,3955.0,3954.9,2.52850893]
[1761078727630,0.001,3955.3,3955.2,2.52831715]
[1761078728025,0.4726,3955.3,3955.2,2.52831715]
[1761078730040,0.4726,3955.3,3954.6,3.36]
[1761078730239,0.2184,3954.7,3954.4,2.52879819]
[1761078730457,0.2184,3954.7,3954.6,2.52870075]
[1761078730637,0.69,3954.7,3954.6,2.52870075]
[1761078731017,0.69,3954.7,3954.5,2.52874952]
[1761078731244,0.4716,3954.6,3954.5,2.52874952]
[1761078731449,0.4716,3954.6,3954.5,2.52876469]
[1761078732855,0.4716,3954.6,3954.2,3.36]
[1761078733162,0.4716,3954.6,3952.6,2.52998026]
[1761078733335,3.00034369,3954.6,3953.5,2.52939999]
[1761078733530,3.00034369,3954.6,3953.5,2.52940432]
[1761078733745,0.2184,3953.6,3953.5,2.52940432]
[1761078734221,0.69,3953.6,3953.5,2.52940432]
[1761078734418,0.4716,3954.1,3953.9,2.52911233]
[1761078734623,0.4716,3954.1,3954.0,2.52908447]
[1761078734858,0.4716,3954.1,3953.6,3.359]
[1761078734859,0.4716,3954.1,3953.5,2.52940353]
[1761078735152,0.4716,3954.1,3953.2,3.359]
[1761078735455,0.4716,3954.1,3953.8,2.52917045]
[1761078735822,0.2184,3953.9,3953.8,2.52917045]
[1761078736025,0.2184,3953.9,3953.7,2.52923455]
[1761078736349,0.4716,3953.8,3953.7,2.52927637]
[1761078736534,0.4716,3953.8,3953.2,3.359]
[1761078736735,0.4716,3953.8,3953.6,2.52928834]
[1761078737158,0.4716,3953.8,3953.7,2.52927637]
[1761078737458,0.4716,3953.8,3953.2,3.359]
[1761078737662,0.4716,3953.8,3952.5,0.002]
[1761078737827,2.52945948,3953.5,3952.5,0.002]
[1761078738020,2.52940432,3953.5,3952.5,0.002]
[1761078738220,0.50688,3953.3,3952.1,0.002]
[1761078738463,2.0268,3953.4,3952.1,0.027303]
[1761078738775,0.4716,3953.3,3952.6,2.52992659]
[1761078738925,0.4716,3953.3,3952.1,0.002]
[1761078739121,0.4716,3953.3,3952.5,2.53003852]
[1761078739459,0.4716,3953.3,3952.1,0.002]
[1761078739642,2.52965353,3953.2,3952.3,2.53016618]
[1761078739958,2.52966832,3953.1,3952.3,2.53016618]
[1761078740168,2.99475414,3953.2,3952.1,0.002]
[1761078740326,2.99475414,3953.2,3952.3,2.53011572]
[1761078740327,2.52965414,3953.2,3952.3,2.53011572]
[1761078740662,0.4651,3953.1,3952.2,2.53018513]
[1761078740955,2.9947628,3953.1,3952.3,2.53015348]
[1761078741159,0.4651,3953.1,3952.4,2.53009308]
[1761078741326,0.4651,3953.0,3952.4,2.53009308]
[1761078741724,0.4651,3953.0,3952.5,2.53004366]
[1761078741928,0.4651,3953.0,3952.1,0.002]
[1761078741929,0.4651,3953.0,3952.1,0.027303]
[1761078742129,0.4651,3953.0,3952.4,2.53005305]
[1761078742360,0.4651,3953.0,3952.5,2.53003425]
[1761078744061,0.4651,3953.0,3952.2,2.53018104]
[1761078744225,2.52971754,3953.1,3952.3,2.53016481]
[1761078744428,2.52961724,3953.2,3952.4,2.53010775]
[1761078744627,1.5552,3953.4,3952.5,2.53001051]
[1761078744848,1.5552,3953.5,3952.5,2.53001051]
[1761078745062,4.08474202,3953.3,3952.2,0.0874]
[1761078745367,1.5552,3953.3,3952.6,2.52997612]
[1761078745952,0.4739,3953.2,3952.6,2.52997612]
[1761078746147,0.4739,3953.2,3952.1,0.002]
[1761078746376,0.4739,3953.2,3952.6,2.52995767]
[1761078747342,0.4739,3953.2,3952.5,2.53202651]
[1761078747957,3.00350311,3953.2,3952.5,2.53202651]
[1761078748441,0.4739,3953.1,3952.5,0.002]
[1761078749755,2.52972426,3953.0,3952.5,0.002]
[1761078750278,3.358,3953.3,3952.5,0.002]
[1761078750279,2.52992005,3952.7,3952.5,0.002]
[1761078750443,5.88592005,3952.7,3952.5,0.002]
[1761078750645,0.4739,3952.6,3952.5,0.002]
[1761078751655,3.00388026,3952.6,3952.5,0.002]
[1761078751858,4.55908026,3952.6,3952.5,0.002]
[1761078752974,10.03241926,3952.6,3952.5,0.002]
[1761078753152,4.55908026,3952.6,3952.5,0.002]
[1761078753359,7.59191226,3952.6,3952.5,0.002]
[1761078753557,8.09879226,3952.6,3952.5,0.002]
[1761078754301,21.01637226,3952.6,3952.5,0.002]
[1761078754499,12.79788626,3952.6,3952.5,0.002]
[1761078754856,16.15288626,3952.6,3952.5,0.002]
[1761078755057,2.53023632,3952.2,3952.1,0.002]
[1761078755277,31.67286823,3952.2,3952.1,0.002]
[1761078755480,25.83609623,3952.2,3952.1,0.002]
[1761078755681,3.03711632,3952.2,3952.1,0.002]
[1761078755960,45.48377123,3952.2,3952.1,0.002]
[1761078756189,4.59257243,3951.8,3951.7,0.002]
[1761078756559,5.06647243,3951.8,3951.7,0.002]
[1761078757015,18.25507643,3951.8,3951.7,0.002]
[1761078757303,7.94657243,3951.8,3951.7,0.002]
[1761078757460,1.5552,3952.1,3951.7,0.002]
[1761078757665,3.86088,3952.0,3951.7,0.002]
[1761078757900,1.5552,3951.8,3951.7,0.002]
[1761078758106,4.08569243,3951.8,3951.7,0.002]
[1761078758313,6.3912907,3952.0,3951.7,0.002]
[1761078758314,2.53043031,3951.9,3951.7,0.002]
[1761078758598,3.354,3951.8,3951.7,0.002]
[1761078759091,6.86527243,3951.8,3951.7,0.002]
[1761078759294,8.42047243,3951.8,3951.7,0.002]
[1761078759499,2.0291,3951.8,3951.7,0.002]
[1761078759700,7.43969243,3951.8,3951.7,0.002]
[1761078760198,4.9092,3951.8,3951.7,0.002]
[1761078760573,21.70363643,3951.8,3951.7,0.002]
[1761078760774,14.96617043,3951.8,3951.7,0.002]
[1761078761464,7.94657243,3951.8,3951.7,0.002]
[1761078761799,1.5552,3951.8,3951.7,0.002]
[1761078762097,6.35839243,3951.8,3951.7,0.002]
[1761078762276,6.86527243,3951.8,3951.7,0.002]
[1761078763310,3.51127243,3951.8,3951.7,0.002]
[1761078763802,6.39037243,3951.8,3951.7,0.002]
[1761078764002,6.86427243,3951.8,3951.7,0.002]
[1761078764366,0.4739,3951.8,3951.7,0.002]
[1761078764567,3.353,3951.8,3951.7,0.002]
[1761078765397,6.35739243,3951.8,3951.7,0.002]
[1761078765597,0.001,3952.0,3951.7,0.002]
[1761078765797,3.353,3951.9,3951.7,0.002]
[1761078767994,0.001,3952.0,3951.7,0.002]
[1761078768175,3.353,3951.8,3951.7,0.002]
[1761078768583,3.8269,3951.8,3951.7,0.002]
[1761078769187,3.353,3951.8,3951.7,0.002]
[1761078769619,3.8269,3951.8,3951.7,0.002]
[1761078771079,6.35739243,3951.8,3951.7,0.002]
[1761078771733,3.8269,3951.8,3951.7,0.002]
[1761078772380,0.001,3952.0,3951.7,0.002]
[1761078772572,0.001,3952.0,3951.8,0.098]
[1761078772771,0.001,3952.0,3951.9,2.55573268]
[1761078773179,0.001,3952.0,3951.9,2.6284284]
[1761078773803,0.001,3952.0,3951.9,2.65373268]
[1761078774592,0.001,3952.0,3951.9,2.6284284]
[1761078775191,0.001,3952.0,3951.9,5.9784284]
[1761078776623,0.001,3952.0,3951.9,8.9784284]
[1761078780821,0.001,3952.0,3951.9,8.8804284]
[1761078781003,0.001,3952.0,3951.9,5.8804284]
[1761078781197,0.001,3952.0,3951.9,5.9784284]
[1761078781626,0.001,3952.0,3951.9,5.8804284]
[1761078782927,0.001,3952.0,3951.9,5.9784284]
[1761078783439,0.001,3952.0,3951.9,5.8804284]
[1761078785607,0.436,3952.0,3951.7,0.002]
[1761078785812,0.2216,3951.9,3951.7,0.002]
[1761078786209,2.96549243,3951.8,3950.1,3.4374]
[1761078786409,2.53074859,3951.4,3950.1,3.35]
[1761078786639,0.435,3951.7,3950.6,2.53124334]
[1761078786815,0.001,3952.4,3951.4,0.102]
[1761078787132,0.001,3952.4,3951.9,2.5304284]
[1761078787335,0.001,3952.4,3951.9,2.55573268]
[1761078787534,0.001,3952.4,3951.9,2.6324284]
[1761078787839,0.001,3952.4,3951.9,2.65773268]
[1761078789644,0.001,3952.4,3951.9,7.16934368]
[1761078789826,0.001,3952.4,3951.9,6.5299094]
[1761078790138,0.001,3952.4,3951.9,4.1876284]
[1761078790904,0.001,3952.4,3951.9,4.21293268]
[1761078791136,0.001,3952.4,3951.9,4.1876284]
[1761078791343,0.001,3952.4,3951.9,2.5304284]
[1761078792137,0.001,3952.4,3951.5,3.347]
[1761078792442,0.001,3952.4,3951.9,2.5304284]
[1761078792814,0.001,3952.4,3951.5,3.347]
[1761078793128,0.001,3952.4,3951.9,2.5304284]
[1761078793331,0.001,3952.4,3951.5,5.8776825]
[1761078793546,0.435,3952.2,3951.5,3.347]
[1761078794029,0.2216,3951.9,3951.8,2.53049199]
[1761078794409,0.001,3952.0,3951.9,2.5304284]
[1761078794609,0.6566,3951.9,3951.5,3.347]
[1761078794812,0.2216,3951.9,3951.5,3.347]
[1761078795042,0.001,3952.0,3951.8,2.53049243]
[1761078795744,0.001,3952.0,3951.5,3.347]
[1761078795745,0.001,3952.0,3951.9,2.5304284]
[1761078796144,0.001,3952.0,3951.5,3.347]
[1761078796320,0.436,3952.0,3951.5,3.347]
[1761078796519,0.001,3952.0,3951.9,2.5304284]
[1761078798322,0.001,3952.0,3951.9,5.8744284]
[1761078802747,0.001,3952.0,3951.9,5.9764284]
[1761078809734,0.001,3953.3,3953.2,2.52959627]
[1761078809934,0.001,3953.3,3953.2,5.87059627]
[1761078810350,0.001,3953.3,3953.2,5.97259627]
[1761078811341,0.001,3953.3,3953.2,5.87059627]
[1761078812460,0.001,3953.3,3953.2,5.97259627]
[1761078812631,0.001,3953.3,3953.2,5.87059627]
[1761078813037,0.001,3953.3,3953.2,5.97259627]
[1761078813879,0.001,3953.3,3953.2,15.83125727]
[1761078814082,0.001,3953.3,3953.2,16.33813727]
[1761078814247,0.001,3953.3,3953.2,14.68343527]
[1761078814741,0.001,3955.3,3954.0,2.52908447]
[1761078814742,1e-08,3954.1,3954.0,2.52908447]
[1761078814967,1e-08,3954.1,3954.0,5.86908447]
[1761078815171,1e-08,3954.1,3954.0,5.97108447]
[1761078816171,1e-08,3954.1,3954.0,7.52628447]
[1761078816562,1e-08,3954.1,3954.0,15.95546347]
[1761078816788,1e-08,3954.1,3954.0,15.36086547]
[1761078816943,1e-08,3954.1,3954.0,15.86774547]
[1761078817144,1e-08,3954.1,3954.0,14.89813447]
[1761078817343,1e-08,3954.1,3954.0,10.09374047]
[1761078817775,0.001,3955.3,3955.2,2.52831715]
[1761078817979,0.001,3955.3,3955.2,5.86631715]
[1761078818376,0.001,3955.3,3955.2,5.96831715]
[1761078819477,0.001,3955.3,3955.2,5.86631715]
[1761078823008,0.001,3955.3,3955.2,8.86631715]
[1761078830071,0.4395,3955.3,3955.2,5.86631715]
[1761078830609,0.001,3955.3,3955.2,5.86631715]
[1761078831867,0.001,3955.3,3955.2,8.86631715]
[1761078832308,0.001,3955.3,3955.2,11.03039715]
[1761078834985,0.001,3955.8,3955.7,2.52799757]
[1761078835190,0.001,3955.8,3955.7,7.44147754]
[1761078835516,0.001,3955.8,3955.7,8.02507757]
[1761078835679,0.001,3955.8,3955.7,11.02507757]
[1761078836715,0.001,3955.8,3955.7,24.43271857]
[1761078836917,0.001,3955.8,3955.7,18.29736457]
[1761078838638,0.001,3955.8,3955.7,10.92307757]
[1761078839088,0.001,3955.8,3955.7,11.02507757]
[1761078840019,0.001,3955.8,3955.7,10.92307757]
[1761078840434,0.001,3955.8,3955.7,10.41619757]
[1761078841627,0.001,3955.8,3955.7,19.13170157]
[1761078841817,0.687,3957.3,3956.5,4.08268641]
[1761078842023,0.687,3957.3,3956.5,7.41268641]
[1761078842339,0.2304,3956.9,3956.5,7.41268641]
[1761078842545,0.2304,3956.9,3956.5,10.41268641]
[1761078843934,0.4576,3956.6,3956.5,10.41268641]
[1761078844138,0.4576,3956.6,3956.5,7.41268641]
[1761078845458,0.4576,3956.6,3956.5,3.33]
[1761078845661,0.4576,3956.6,3954.7,2.52863681]
[1761078845863,1.10588,3956.5,3953.1,2.765]
[1761078846019,0.2304,3954.2,3954.1,2.5310092]
[1761078846218,0.2304,3954.2,3954.1,2.5350092]
[1761078846462,0.687,3954.2,3954.1,2.5350092]
[1761078846628,0.2304,3954.2,3954.1,2.53502051]
[1761078847040,0.687,3954.2,3954.1,2.53502051]
[1761078848734,0.2304,3954.9,3954.2,2.52895655]
[1761078849052,0.2304,3956.0,3954.4,2.52882864]
[1761078849251,0.2304,3956.0,3954.3,1.58048892]
[1761078849252,0.4566,3955.9,3955.2,2.52829851]
[1761078849557,0.4566,3955.9,3955.1,2.52836772]
[1761078849742,0.2304,3955.2,3955.1,2.52836772]
[1761078850352,0.687,3955.2,3955.1,2.52836772]
[1761078853453,0.687,3955.2,3954.9,3.328]
[1761078853655,0.4566,3955.1,3954.9,3.328]
[1761078853854,0.4566,3955.1,3954.1,0.002]
[1761078854032,0.4566,3955.1,3954.3,1.5552]
[1761078854236,0.4566,3955.1,3954.2,3.328]
[1761078854237,0.4566,3955.1,3954.8,2.52857216]
[1761078854561,0.4566,3955.1,3954.1,0.002]
[1761078854562,0.4566,3955.1,3954.7,2.52862356]
[1761078854726,0.4566,3955.1,3954.5,3.328]
[1761078854931,0.4566,3955.1,3954.7,2.52862724]
[1761078855127,0.4566,3955.1,3954.1,0.002]
[1761078855459,2.528445,3955.0,3954.1,2.53100982]
[1761078855642,2.528463,3955.0,3954.1,2.53101637]
[1761078855849,2.98512967,3954.9,3954.1,2.53101637]
[1761078856051,2.52863482,3954.8,3954.1,0.002]
[1761078856239,0.4566,3954.7,3954.1,2.53100517]
[1761078856561,0.4566,3954.7,3954.2,2.52894479]
[1761078856738,0.4566,3954.7,3954.3,2.52887694]
[1761078856935,0.4566,3954.7,3954.1,0.002]
[1761078856936,0.4566,3954.7,3954.4,0.02528828]
[1761078857139,0.4566,3954.7,3954.2,3.327]
[1761078857464,0.4566,3954.7,3954.3,2.52889259]
[1761078857663,0.4566,3954.7,3954.2,5.85593806]
[1761078857861,0.4566,3954.7,3954.3,2.52889259]
[1761078858167,0.4566,3954.7,3954.2,3.327]
[1761078858366,0.4566,3954.7,3954.1,0.002]
[1761078858945,0.4566,3954.7,3954.2,2.52889751]
[1761078859167,0.4566,3954.7,3954.1,0.002]
[1761078859371,0.4566,3954.7,3954.1,2.53097439]
[1761078860272,0.4566,3954.7,3954.2,2.52895507]
[1761078860650,0.4566,3954.7,3954.1,2.53101628]
[1761078861046,0.4566,3954.7,3954.2,2.52895421]
[1761078861269,0.4566,3954.7,3954.1,2.53101239]
[1761078861565,0.4566,3954.7,3954.1,0.002]
[1761078861965,0.4566,3954.7,3954.2,2.52895477]
[1761078862148,0.4566,3954.7,3954.1,0.002]
[1761078862149,0.4566,3954.7,3954.1,2.53101422]
[1761078862871,0.4566,3954.7,3954.2,2.52894715]
[1761078864139,0.4566,3954.7,3954.1,2.53099828]
[1761078864541,0.4566,3954.7,3954.2,2.5289405]
[1761078865164,0.4566,3954.7,3954.1,2.5309974]
[1761078865367,6.31124134,3954.7,3954.1,0.002]
[1761078865565,2.52875154,3954.6,3954.1,0.002]
[1761078865770,0.4515,3954.5,3954.1,0.002]
[1761078866354,2.52883014,3954.4,3954.1,0.002]
[1761078866550,2.98027449,3954.5,3954.1,0.002]
[1761078866756,0.4515,3954.4,3954.1,0.002]
[1761078867462,2.52895655,3954.2,3954.1,0.002]
[1761078867971,2.98045655,3954.2,3954.1,0.002]
[1761078868172,3.48733655,3954.2,3954.1,0.002]
[1761078868881,5.04253655,3954.2,3954.1,0.002]
[1761078869053,2.51358,3954.2,3954.1,0.002]
[1761078869469,5.04253655,3954.2,3954.1,0.002]
[1761078869778,2.0067,3954.2,3954.1,0.002]
[1761078869959,4.53565655,3954.2,3954.1,0.002]
[1761078870161,5.04253655,3954.2,3954.1,0.002]
[1761078871781,5.14394961,3954.2,3954.1,0.002]
[1761078872147,5.04253655,3954.2,3954.1,0.002]
[1761078872950,8.36753655,3954.2,3954.1,0.002]
[1761078874051,25.14593255,3954.2,3954.1,0.002]
[1761078874253,44.18354068,3954.2,3954.1,0.002]
[1761078874449,45.52994909,3954.2,3954.1,0.002]
[1761078874872,34.09508068,3954.2,3954.1,0.002]
[1761078875294,30.77008068,3954.2,3954.1,0.002]
[1761078875457,29.03124892,3954.1,3954.0,1e-08]
[1761078875666,29.55854891,3954.1,3954.0,1e-08]
[1761078876074,28.84701191,3954.1,3954.0,1e-08]
[1761078876583,30.52378491,3954.1,3954.0,1e-08]
[1761078877285,23.65975791,3954.1,3954.0,1e-08]
[1761078877589,10.87580791,3954.1,3954.0,1e-08]
[1761078877773,8.99140952,3954.1,3954.0,1e-08]
[1761078878090,4.98039152,3954.1,3954.0,1e-08]
[1761078878269,7.85972051,3954.1,3954.0,1e-08]
[1761078878467,8.36660051,3954.1,3954.0,1e-08]
[1761078878670,8.46801717,3954.1,3954.0,1e-08]
[1761078879492,8.46801717,3954.1,3953.7,0.002]
[1761078879493,21.3858574,3953.8,3953.7,0.002]
[1761078879676,33.71393797,3953.8,3953.7,0.002]
[1761078879876,34.62365697,3953.8,3953.7,0.002]
[1761078880065,34.96689538,3953.8,3953.7,0.002]
[1761078880269,40.23527238,3953.8,3953.7,0.002]
[1761078881395,46.52716838,3953.8,3953.7,0.002]
[1761078881699,44.95254938,3953.8,3953.7,0.002]
[1761078882268,41.62854938,3953.8,3953.7,0.002]
[1761078882472,55.11952238,3953.8,3953.7,0.002]
[1761078882676,44.53341338,3953.8,3953.7,0.002]
[1761078883394,51.35174338,3953.8,3953.7,0.002]
[1761078884499,28.93562738,3953.8,3953.7,0.002]
[1761078884795,53.05062438,3953.8,3953.7,0.002]
[1761078885183,45.77886238,3953.8,3953.7,0.002]
[1761078885382,29.13323738,3953.8,3953.7,0.002]
[1761078885576,31.28563097,3953.8,3953.7,0.002]
[1761078886585,41.83380097,3953.8,3953.7,0.002]
[1761078886766,37.00081297,3953.8,3953.7,0.002]
[1761078886968,31.9040862,3953.8,3953.7,0.002]
[1761078887496,36.2593362,3953.8,3953.7,0.002]
[1761078887698,36.2583362,3953.8,3953.7,0.002]
[1761078888275,36.65504326,3953.8,3953.7,0.002]
[1761078888500,43.83640492,3953.8,3953.7,0.002]
[1761078889191,40.51340492,3953.8,3953.7,0.002]
[1761078889389,43.83640492,3953.8,3953.7,0.002]
[1761078889588,58.69258092,3953.8,3953.7,0.002]
[1761078889795,51.03034833,3953.8,3953.7,0.002]
[1761078889989,57.02535833,3953.8,3953.7,0.002]
[1761078890195,50.68535833,3953.8,3953.7,0.002]
[1761078890604,46.75070533,3953.8,3953.7,0.002]
[1761078890906,50.07270533,3953.8,3953.7,0.002]
[1761078891284,50.73076742,3953.8,3953.7,0.002]
[1761078891487,51.12749513,3953.8,3953.7,0.002]
[1761078891708,55.59125413,3953.8,3953.7,0.002]
[1761078892582,57.80125513,3953.8,3953.7,0.002]
[1761078892791,51.67935913,3953.8,3953.7,0.002]
[1761078893109,50.51337713,3953.8,3953.7,0.002]
[1761078893311,49.85531504,3953.8,3953.7,0.002]
[1761078893675,50.82860004,3953.8,3953.7,0.002]
[1761078894380,42.26059304,3953.8,3953.7,0.002]
[1761078894780,42.26034004,3953.8,3953.7,0.002]
[1761078894981,38.93834004,3953.8,3953.7,0.002]
[1761078895183,34.45000885,3953.8,3953.7,0.002]
[1761078895691,40.54470885,3953.8,3953.7,0.002]
[1761078895888,36.35680285,3953.8,3953.7,0.002]
[1761078896282,32.37610163,3953.8,3953.7,0.002]
[1761078896481,34.91639427,3953.8,3953.7,0.002]
[1761078896709,37.77883027,3953.8,3953.7,0.002]
[1761078896885,35.24939427,3953.8,3953.7,0.002]
[1761078897208,34.58936163,3953.8,3953.7,0.002]
[1761078897590,31.26836163,3953.8,3953.7,0.002]
[1761078897804,41.2991186,3953.8,3953.7,0.002]
[1761078898213,35.4387786,3953.8,3953.7,0.002]
[1761078898510,34.1814266,3953.8,3953.7,0.002]
[1761078898912,34.0291966,3953.8,3953.7,0.002]
[1761078899810,48.5238046,3953.8,3953.7,0.002]
[1761078899988,36.9157446,3953.8,3953.7,0.002]
[1761078900191,3.55235647,3953.8,3953.7,0.002]
[1761078900393,3.32,3954.0,3953.7,0.002]
[1761078900719,4.0844124,3953.8,3953.7,0.002]
[1761078901133,5.0253924,3953.8,3953.7,0.002]
[1761078901285,7.6748204,3953.8,3953.7,0.002]
[1761078901781,12.77124862,3953.8,3953.7,0.002]
[1761078901986,4.5912924,3953.8,3953.7,0.002]
[1761078902199,9.8142854,3953.8,3953.7,0.002]
[1761078902703,12.9996104,3953.8,3953.7,0.002]
[1761078903014,4.5912924,3953.8,3953.7,0.002]
[1761078903239,12.2292254,3953.8,3953.7,0.002]
[1761078903518,4.5912924,3953.8,3953.7,0.002]
[1761078903731,7.9112924,3953.8,3953.7,0.002]
[1761078904104,8.3453924,3953.8,3953.7,0.002]
[1761078905910,16.2230384,3953.8,3953.7,0.002]
[1761078906107,14.9245384,3953.8,3953.7,0.002]
[1761078906300,12.7824204,3953.8,3953.7,0.002]
[1761078906504,11.2235054,3953.8,3953.7,0.002]
[1761078906713,7.9112924,3953.8,3953.7,0.002]
[1761078906997,11.7006654,3953.8,3953.7,0.002]
[1761078907298,8.3453924,3953.8,3953.7,0.002]
[1761078908024,8.3433924,3953.8,3953.7,0.002]
[1761078908226,7.9092924,3953.8,3953.7,0.002]
[1761078909533,7.4024124,3953.8,3953.7,0.002]
[1761078910535,4.8732,3953.8,3953.7,0.002]
[1761078911505,7.4024124,3953.8,3953.7,0.002]
[1761078911904,4.8732,3953.8,3953.7,0.002]
[1761078912501,1.5552,3953.8,3953.7,0.002]
[1761078912819,0.001,3954.0,3953.7,0.104]
[1761078913138,0.001,3954.0,3953.9,2.52914843]
[1761078913635,0.001,3954.0,3953.9,0.102]
[1761078914829,0.001,3954.0,3953.9,2.63114843]
[1761078916027,0.001,3954.0,3953.9,0.102]
[1761078917039,0.001,3954.0,3953.9,2.63114843]
[1761078926176,0.001,3954.0,3953.8,0.10137374]
[1761078926334,0.001,3954.0,3953.7,0.002]
[1761078926943,2.5292124,3953.8,3953.7,0.002]
[1761078927142,2.76056902,3953.9,3953.7,0.002]
[1761078927343,2.9975124,3953.8,3953.7,0.002]
[1761078927864,4.5527124,3953.8,3953.7,0.002]
[1761078929564,7.8647124,3953.8,3953.7,0.002]
[1761078934656,4.8672,3953.8,3953.7,0.002]
[1761078934855,4.8662,3953.8,3953.7,0.002]
[1761078935089,5.3345,3953.8,3953.7,0.002]
[1761078935254,4.8662,3953.8,3953.7,0.002]
[1761078935771,5.3345,3953.8,3953.7,0.002]
[1761078936083,4.8662,3953.8,3953.7,0.002]
[1761078937265,3.311,3953.8,3953.7,0.002]
[1761078937685,3.31,3953.9,3953.7,0.002]
[1761078937907,0.001,3954.0,3953.9,2.52914843]
[1761078938063,0.001,3954.0,3953.7,2.53125414]
[1761078938385,0.001,3954.0,3953.7,2.53127273]
[1761078938596,0.001,3954.0,3953.8,2.52920139]
[1761078938794,0.001,3954.0,3953.7,0.002]
[1761078939588,2.5292124,3953.8,3953.7,0.002]
[1761078940091,2.9975124,3953.8,3953.7,0.002]
[1761078940685,3.5043924,3953.8,3953.7,0.002]
[1761078941391,19.8217464,3953.8,3953.7,0.002]
[1761078941589,16.81178981,3953.8,3953.7,0.002]
[1761078942000,5.40383081,3953.8,3953.7,0.002]
[1761078942759,5.0605924,3953.8,3953.7,0.002]
[1761078944530,4.5922924,3953.8,3953.7,0.002]
[1761078945181,7.9012924,3953.8,3953.7,0.002]
[1761078945788,8.3695924,3953.8,3953.7,0.002]
[1761078946502,7.9012924,3953.8,3953.7,0.002]
[1761078947204,8.3695924,3953.8,3953.7,0.002]
[1761078947900,7.9012924,3953.8,3953.7,0.002]
[1761078948412,8.3695924,3953.8,3953.7,0.002]
[1761078948906,8.71283081,3953.8,3953.7,0.002]
[1761078949681,2.06308,3953.8,3953.7,0.002]
[1761078949880,7.3934124,3953.8,3953.7,0.002]
[1761078950100,7.8617124,3953.8,3953.7,0.002]
[1761078950882,7.3934124,3953.8,3953.7,0.002]
[1761078951423,4.8642,3953.8,3953.7,0.002]
[1761078951924,5.3325,3953.8,3953.7,0.002]
[1761078952531,7.8617124,3953.8,3953.7,0.002]
[1761078952685,4.8642,3953.8,3953.7,0.002]
[1761078953229,7.3934124,3953.8,3953.7,0.002]
[1761078953433,1.5562,3953.8,3953.7,0.002]
[1761078953578,0.001,3953.8,3953.7,0.002]
[1761078953784,0.001,3953.8,3953.7,0.104]